[Event "Titled Tuesday Blitz February 07 Late 2023"]
[White "Sailer, Mike"]
[Black "Prieto Aranguren, Alain"]
[WhiteFideId "2012901"]
[BlackFideId "2268906"]
[WhiteElo "2109"]
[BlackElo "2258"]
[Result "0-1"]
[Round "06"]
[TimeControl "180+2"]
[Date "2023.02.07"]
[WhiteClock "0:00:04"]
[BlackClock "0:00:24"]

1. d4 {[%clk 0:03:00]}  g6 {[%clk 0:02:58]} 2. Nf3 {[%clk 0:02:59]}  Bg7 {[%clk 0:02:58]} 3. Bf4 {[%clk 0:02:59]}  c5 {[%clk 0:02:55]} 4. e3 {[%clk 0:02:58]}  cxd4 {[%clk 0:02:55]} 5. exd4 {[%clk 0:02:58]}  d5 {[%clk 0:02:56]} 6. c3 {[%clk 0:02:58]}  Nf6 {[%clk 0:02:55]} 7. Bd3 {[%clk 0:02:57]}  O-O {[%clk 0:02:55]} 8. h3 {[%clk 0:02:57]}  Nc6 {[%clk 0:02:55]} 9. O-O {[%clk 0:02:57]}  Nh5 {[%clk 0:02:55]} 10. Bh2 {[%clk 0:02:56]}  Bh6 {[%clk 0:02:55]} 11. Re1 {[%clk 0:02:53]}  Nf4 {[%clk 0:02:49]} 12. Bf1 {[%clk 0:02:51]}  Bf5 {[%clk 0:02:45]} 13. Na3 {[%clk 0:02:46]}  Be4 {[%clk 0:02:40]} 14. Nc2 {[%clk 0:02:35]}  e6 {[%clk 0:02:39]} 15. Ne3 {[%clk 0:02:35]}  f5 {[%clk 0:02:16]} 16. Nd2 {[%clk 0:02:26]}  Nd3 {[%clk 0:02:14]} 17. Bxd3 {[%clk 0:02:21]}  Bxd3 {[%clk 0:02:14]} 18. Nf3 {[%clk 0:02:14]}  Be4 {[%clk 0:02:13]} 19. Ne5 {[%clk 0:02:13]}  f4 {[%clk 0:02:07]} 20. N3g4 {[%clk 0:02:09]}  Nxe5 {[%clk 0:01:53]} 21. Nxh6+ {[%clk 0:01:44]}  Kg7 {[%clk 0:01:53]} 22. dxe5 {[%clk 0:01:20]}  Kxh6 {[%clk 0:01:50]} 23. Qd2 {[%clk 0:01:19]}  g5 {[%clk 0:01:46]} 24. h4 {[%clk 0:01:17]}  Kg6 {[%clk 0:01:29]} 25. Rad1 {[%clk 0:01:08]}  h6 {[%clk 0:01:25]} 26. c4 {[%clk 0:00:56]}  Qe7 {[%clk 0:01:21]} 27. cxd5 {[%clk 0:00:52]}  Bxd5 {[%clk 0:01:21]} 28. Qc2+ {[%clk 0:00:44]}  Kg7 {[%clk 0:01:20]} 29. Rc1 {[%clk 0:00:41]}  Rac8 {[%clk 0:01:06]} 30. Qxc8 {[%clk 0:00:40]}  Rxc8 {[%clk 0:01:06]} 31. Rxc8 {[%clk 0:00:41]}  Qb4 {[%clk 0:01:05]} 32. Rec1 {[%clk 0:00:34]}  gxh4 {[%clk 0:00:48]} 33. R8c7+ {[%clk 0:00:25]}  Kg6 {[%clk 0:00:47]} 34. f3 {[%clk 0:00:23]}  h3 {[%clk 0:00:42]} 35. gxh3 {[%clk 0:00:20]}  Qd4+ {[%clk 0:00:40]} 36. Kf1 {[%clk 0:00:17]}  Bxf3 {[%clk 0:00:28]} 37. Bg1 {[%clk 0:00:17]}  Qd3+ {[%clk 0:00:26]} 38. Kf2 {[%clk 0:00:04]}  Qe2# {[%clk 0:00:24]} 0-1


[Site "https://www.chess.com"]

[Event "Titled Tuesday Blitz February 07 Late 2023"]
[White "Curtis, John"]
[Black "Gonzalez, Francisco Silva"]
[WhiteFideId "3200256"]
[BlackFideId "1512285"]
[WhiteElo "2292"]
[BlackElo "2021"]
[Result "1-0"]
[Round "06"]
[TimeControl "180+2"]
[Date "2023.02.07"]
[WhiteClock "0:01:31"]
[BlackClock "0:01:49"]

1. e4 {[%clk 0:03:00]}  e5 {[%clk 0:02:59]} 2. Nf3 {[%clk 0:02:59]}  Nc6 {[%clk 0:02:58]} 3. d4 {[%clk 0:02:59]}  exd4 {[%clk 0:02:58]} 4. Nxd4 {[%clk 0:02:59]}  Bc5 {[%clk 0:02:57]} 5. Be3 {[%clk 0:02:56]}  Qf6 {[%clk 0:02:57]} 6. c3 {[%clk 0:02:56]}  Nge7 {[%clk 0:02:56]} 7. Be2 {[%clk 0:02:50]}  d5 {[%clk 0:02:51]} 8. Nxc6 {[%clk 0:02:43]}  Bxe3 {[%clk 0:02:49]} 9. fxe3 {[%clk 0:02:42]}  Qh4+ {[%clk 0:02:43]} 10. Kd2 {[%clk 0:02:32]}  bxc6 {[%clk 0:02:38]} 11. exd5 {[%clk 0:02:31]}  Nxd5 {[%clk 0:02:37]} 12. Qe1 {[%clk 0:02:31]}  Qh6 {[%clk 0:02:34]} 13. Qg3 {[%clk 0:02:28]}  Rb8 {[%clk 0:02:34]} 14. b3 {[%clk 0:02:25]}  O-O {[%clk 0:02:32]} 15. Bc4 {[%clk 0:02:10]}  Rd8 {[%clk 0:02:21]} 16. Bxd5 {[%clk 0:02:10]}  Rxd5+ {[%clk 0:02:21]} 17. Kc1 {[%clk 0:02:06]}  Bf5 {[%clk 0:02:15]} 18. Rd1 {[%clk 0:01:55]}  Rxd1+ {[%clk 0:02:13]} 19. Kxd1 {[%clk 0:01:55]}  Rd8+ {[%clk 0:02:13]} 20. Kc1 {[%clk 0:01:54]}  Rd6 {[%clk 0:01:58]} 21. Qe5 {[%clk 0:01:50]}  Be6 {[%clk 0:01:51]} 22. Nd2 {[%clk 0:01:39]}  f6 {[%clk 0:01:50]} 23. Qc5 {[%clk 0:01:32]}  Qh5 {[%clk 0:01:49]} 24. Qxh5 {[%clk 0:01:31]} 1-0


[Site "https://www.chess.com"]

[Event "Titled Tuesday Blitz February 07 Late 2023"]
[White "Balog, Imre"]
[Black "Rose, Felix"]
[WhiteFideId "728446"]
[BlackFideId "5105722"]
[WhiteElo "2615"]
[BlackElo "2091"]
[Result "0-1"]
[Round "06"]
[TimeControl "180+2"]
[Date "2023.02.07"]
[WhiteClock "0:00:02"]
[BlackClock "0:00:21"]

1. e4 {[%clk 0:03:00]}  e5 {[%clk 0:02:50]} 2. f4 {[%clk 0:02:59]}  exf4 {[%clk 0:02:49]} 3. Nf3 {[%clk 0:02:59]}  Nf6 {[%clk 0:02:50]} 4. Nc3 {[%clk 0:02:50]}  d5 {[%clk 0:02:49]} 5. exd5 {[%clk 0:02:43]}  Nxd5 {[%clk 0:02:48]} 6. Nxd5 {[%clk 0:02:43]}  Qxd5 {[%clk 0:02:48]} 7. Be2 {[%clk 0:02:43]}  Bf5 {[%clk 0:02:38]} 8. d3 {[%clk 0:02:34]}  Bd6 {[%clk 0:02:32]} 9. O-O {[%clk 0:02:33]}  Nc6 {[%clk 0:02:25]} 10. Nh4 {[%clk 0:02:24]}  Be6 {[%clk 0:02:08]} 11. Kh1 {[%clk 0:01:58]}  g5 {[%clk 0:01:59]} 12. c4 {[%clk 0:01:50]}  Qd4 {[%clk 0:01:42]} 13. Nf3 {[%clk 0:01:44]}  Qg7 {[%clk 0:01:42]} 14. Qb3 {[%clk 0:01:30]}  O-O-O {[%clk 0:01:23]} 15. Qb5 {[%clk 0:01:14]}  g4 {[%clk 0:01:11]} 16. Ng5 {[%clk 0:00:56]}  Nd4 {[%clk 0:01:04]} 17. Nxe6 {[%clk 0:00:35]}  fxe6 {[%clk 0:01:04]} 18. Qa5 {[%clk 0:00:26]}  Nxe2 {[%clk 0:00:59]} 19. Qxa7 {[%clk 0:00:23]}  Qh6 {[%clk 0:00:43]} 20. Qa8+ {[%clk 0:00:17]}  Kd7 {[%clk 0:00:43]} 21. Qa4+ {[%clk 0:00:17]}  c6 {[%clk 0:00:41]} 22. b4 {[%clk 0:00:14]}  Ng3+ {[%clk 0:00:34]} 23. Kg1 {[%clk 0:00:14]}  Nxf1 {[%clk 0:00:34]} 24. Kxf1 {[%clk 0:00:12]}  Qxh2 {[%clk 0:00:34]} 25. Qa7 {[%clk 0:00:09]}  Qh1+ {[%clk 0:00:31]} 26. Qg1 {[%clk 0:00:10]}  Qxg1+ {[%clk 0:00:30]} 27. Kxg1 {[%clk 0:00:10]}  Bxb4 {[%clk 0:00:29]} 28. Bxf4 {[%clk 0:00:11]}  Bc5+ {[%clk 0:00:28]} 29. Kh2 {[%clk 0:00:10]}  Rdf8 {[%clk 0:00:28]} 30. Be5 {[%clk 0:00:09]}  Rhg8 {[%clk 0:00:28]} 31. d4 {[%clk 0:00:09]}  Bd6 {[%clk 0:00:25]} 32. Rd1 {[%clk 0:00:07]}  Rf5 {[%clk 0:00:23]} 33. c5 {[%clk 0:00:06]}  Bxe5+ {[%clk 0:00:23]} 34. dxe5+ {[%clk 0:00:07]}  Kc7 {[%clk 0:00:22]} 35. Re1 {[%clk 0:00:04]}  Rgg5 {[%clk 0:00:22]} 36. Kg3 {[%clk 0:00:03]}  Rxe5 {[%clk 0:00:22]} 37. Rh1 {[%clk 0:00:02]}  h5 {[%clk 0:00:21]} 0-1


[Site "https://www.chess.com"]

[Event "Titled Tuesday Blitz February 07 Late 2023"]
[White "Slavin, Alexey"]
[Black "Souza, Gustavo Horokoski De"]
[WhiteFideId "24104388"]
[BlackFideId "2146584"]
[WhiteElo "2364"]
[BlackElo "1943"]
[Result "0-1"]
[Round "06"]
[TimeControl "180+2"]
[Date "2023.02.07"]
[WhiteClock "0:00:01"]
[BlackClock "0:00:05"]

1. e4 {[%clk 0:02:58]}  e6 {[%clk 0:02:52]} 2. Nf3 {[%clk 0:02:57]}  d5 {[%clk 0:02:51]} 3. e5 {[%clk 0:02:56]}  c5 {[%clk 0:02:50]} 4. b4 {[%clk 0:02:55]}  cxb4 {[%clk 0:02:48]} 5. a3 {[%clk 0:02:55]}  b3 {[%clk 0:02:47]} 6. cxb3 {[%clk 0:02:46]}  Nc6 {[%clk 0:02:47]} 7. d4 {[%clk 0:02:44]}  f6 {[%clk 0:02:40]} 8. Bb2 {[%clk 0:02:42]}  fxe5 {[%clk 0:02:39]} 9. dxe5 {[%clk 0:02:42]}  Bd7 {[%clk 0:02:23]} 10. Bd3 {[%clk 0:02:41]}  Nge7 {[%clk 0:02:02]} 11. O-O {[%clk 0:02:41]}  g6 {[%clk 0:01:57]} 12. Re1 {[%clk 0:02:39]}  Bg7 {[%clk 0:01:57]} 13. h4 {[%clk 0:02:27]}  Nf5 {[%clk 0:01:53]} 14. h5 {[%clk 0:02:25]}  O-O {[%clk 0:01:34]} 15. hxg6 {[%clk 0:02:24]}  hxg6 {[%clk 0:01:35]} 16. Nbd2 {[%clk 0:02:19]}  Rf7 {[%clk 0:01:23]} 17. b4 {[%clk 0:02:18]}  a6 {[%clk 0:01:23]} 18. Rc1 {[%clk 0:02:16]}  Nh4 {[%clk 0:01:21]} 19. Qc2 {[%clk 0:01:48]}  Nxf3+ {[%clk 0:00:52]} 20. Nxf3 {[%clk 0:01:47]}  Rxf3 {[%clk 0:00:50]} 21. gxf3 {[%clk 0:01:47]}  Qg5+ {[%clk 0:00:50]} 22. Kf1 {[%clk 0:01:45]}  Rf8 {[%clk 0:00:48]} 23. Bxg6 {[%clk 0:01:29]}  Rxf3 {[%clk 0:00:47]} 24. Bh7+ {[%clk 0:01:21]}  Kf8 {[%clk 0:00:45]} 25. Qe2 {[%clk 0:01:17]}  Rh3 {[%clk 0:00:40]} 26. Qc2 {[%clk 0:01:04]}  Rh1+ {[%clk 0:00:33]} 27. Ke2 {[%clk 0:01:03]}  Qh5+ {[%clk 0:00:33]} 28. Kd2 {[%clk 0:00:51]}  Bh6+ {[%clk 0:00:27]} 29. Kc3 {[%clk 0:00:46]}  Rh3+ {[%clk 0:00:11]} 30. Bd3 {[%clk 0:00:35]}  Bxc1 {[%clk 0:00:07]} 31. Bxc1 {[%clk 0:00:27]}  Nxe5 {[%clk 0:00:06]} 32. Rxe5 {[%clk 0:00:22]}  Qxe5+ {[%clk 0:00:06]} 33. Kb3 {[%clk 0:00:23]}  Bb5 {[%clk 0:00:04]} 34. Qc8+ {[%clk 0:00:12]}  Ke7 {[%clk 0:00:04]} 35. Qxb7+ {[%clk 0:00:10]}  Kf6 {[%clk 0:00:04]} 36. Bb2 {[%clk 0:00:08]}  Rxd3+ {[%clk 0:00:04]} 37. Ka2 {[%clk 0:00:08]}  d4 {[%clk 0:00:04]} 38. Qg2 {[%clk 0:00:02]}  Qd5+ {[%clk 0:00:04]} 39. Qxd5 {[%clk 0:00:02]}  exd5 {[%clk 0:00:05]} 40. Kb1 {[%clk 0:00:02]}  Rd2 {[%clk 0:00:05]} 41. Kc1 {[%clk 0:00:02]}  Rxf2 {[%clk 0:00:06]} 42. Bxd4+ {[%clk 0:00:02]}  Kf5 {[%clk 0:00:05]} 43. Bc5 {[%clk 0:00:03]}  Rf1+ {[%clk 0:00:04]} 44. Kd2 {[%clk 0:00:02]}  Rf3 {[%clk 0:00:05]} 45. Kc2 {[%clk 0:00:02]}  Rd3 {[%clk 0:00:06]} 46. a4 {[%clk 0:00:01]}  Bc4 {[%clk 0:00:06]} 47. b5 {[%clk 0:00:01]}  axb5 {[%clk 0:00:06]} 48. a5 {[%clk 0:00:02]}  b4 {[%clk 0:00:06]} 49. Bxb4 {[%clk 0:00:01]}  Rb3 {[%clk 0:00:04]} 50. Bc3 {[%clk 0:00:01]}  Ke4 {[%clk 0:00:05]} 0-1


[Site "https://www.chess.com"]

[Event "Titled Tuesday Blitz February 07 Late 2023"]
[White "Womacka, Mathias"]
[Black "Zampronha, Wladimir Camilo"]
[WhiteFideId "4611390"]
[BlackFideId "2103087"]
[WhiteElo "2396"]
[BlackElo "2176"]
[Result "1-0"]
[Round "06"]
[TimeControl "180+2"]
[Date "2023.02.07"]
[WhiteClock "0:00:07"]
[BlackClock "0:00:12"]

1. e4 {[%clk 0:03:00]}  c5 {[%clk 0:02:54]} 2. Nf3 {[%clk 0:03:00]}  e6 {[%clk 0:02:54]} 3. d4 {[%clk 0:03:00]}  cxd4 {[%clk 0:02:55]} 4. Nxd4 {[%clk 0:03:00]}  Nc6 {[%clk 0:02:56]} 5. Nc3 {[%clk 0:02:59]}  Qc7 {[%clk 0:02:57]} 6. Be2 {[%clk 0:02:58]}  a6 {[%clk 0:02:57]} 7. O-O {[%clk 0:02:56]}  Nf6 {[%clk 0:02:58]} 8. Be3 {[%clk 0:02:55]}  Bb4 {[%clk 0:02:58]} 9. Na4 {[%clk 0:02:55]}  O-O {[%clk 0:02:57]} 10. c4 {[%clk 0:02:45]}  Be7 {[%clk 0:02:49]} 11. Nc3 {[%clk 0:02:43]}  d6 {[%clk 0:02:45]} 12. Rc1 {[%clk 0:02:38]}  Nxd4 {[%clk 0:02:45]} 13. Bxd4 {[%clk 0:02:38]}  Bd7 {[%clk 0:02:45]} 14. f4 {[%clk 0:02:36]}  e5 {[%clk 0:02:36]} 15. Be3 {[%clk 0:02:05]}  Bc6 {[%clk 0:02:35]} 16. Nd5 {[%clk 0:01:50]}  Bxd5 {[%clk 0:02:34]} 17. cxd5 {[%clk 0:01:43]}  Qa5 {[%clk 0:02:31]} 18. fxe5 {[%clk 0:01:38]}  dxe5 {[%clk 0:02:26]} 19. Bf3 {[%clk 0:01:36]}  Rac8 {[%clk 0:02:19]} 20. Qb3 {[%clk 0:01:30]}  b5 {[%clk 0:02:08]} 21. Rc6 {[%clk 0:01:25]}  Rxc6 {[%clk 0:01:59]} 22. dxc6 {[%clk 0:01:24]}  Rc8 {[%clk 0:01:59]} 23. Qc2 {[%clk 0:01:14]}  Qxa2 {[%clk 0:01:50]} 24. c7 {[%clk 0:01:05]}  Bd6 {[%clk 0:01:25]} 25. Bb6 {[%clk 0:01:03]}  Qe6 {[%clk 0:01:16]} 26. Rc1 {[%clk 0:00:45]}  Nd7 {[%clk 0:01:16]} 27. Ba5 {[%clk 0:00:38]}  Bc5+ {[%clk 0:01:03]} 28. Kh1 {[%clk 0:00:36]}  Bd4 {[%clk 0:00:57]} 29. h3 {[%clk 0:00:28]}  Qd6 {[%clk 0:00:42]} 30. Bg4 {[%clk 0:00:19]}  g6 {[%clk 0:00:43]} 31. Qc6 {[%clk 0:00:17]}  Qxc6 {[%clk 0:00:36]} 32. Rxc6 {[%clk 0:00:18]}  f5 {[%clk 0:00:16]} 33. exf5 {[%clk 0:00:18]}  Bb6 {[%clk 0:00:17]} 34. Bxb6 {[%clk 0:00:15]}  Nxb6 {[%clk 0:00:16]} 35. Rxb6 {[%clk 0:00:15]}  Rxc7 {[%clk 0:00:16]} 36. fxg6 {[%clk 0:00:15]}  hxg6 {[%clk 0:00:16]} 37. Rxg6+ {[%clk 0:00:15]}  Kf7 {[%clk 0:00:15]} 38. Rxa6 {[%clk 0:00:16]}  Rc2 {[%clk 0:00:15]} 39. b3 {[%clk 0:00:14]}  e4 {[%clk 0:00:14]} 40. Rb6 {[%clk 0:00:12]}  Rc5 {[%clk 0:00:12]} 41. Be2 {[%clk 0:00:08]}  Rc2 {[%clk 0:00:08]} 42. Bxb5 {[%clk 0:00:07]}  e3 {[%clk 0:00:09]} 43. Bc4+ {[%clk 0:00:07]}  Ke7 {[%clk 0:00:09]} 44. Re6+ {[%clk 0:00:07]}  Kd7 {[%clk 0:00:08]} 45. Rxe3 {[%clk 0:00:08]}  Kd6 {[%clk 0:00:09]} 46. Kh2 {[%clk 0:00:07]}  Kc5 {[%clk 0:00:09]} 47. h4 {[%clk 0:00:08]}  Kb4 {[%clk 0:00:10]} 48. h5 {[%clk 0:00:08]}  Rc3 {[%clk 0:00:11]} 49. Rxc3 {[%clk 0:00:07]}  Kxc3 {[%clk 0:00:12]} 50. h6 {[%clk 0:00:07]} 1-0


[Site "https://www.chess.com"]

[Event "Titled Tuesday Blitz February 07 Late 2023"]
[White "rikchessmx"]
[Black "ritanovikova"]
[WhiteElo "2230"]
[BlackElo "2226"]
[Result "0-1"]
[Round "06"]
[TimeControl "180+2"]
[Date "2023.02.07"]
[WhiteClock "0:01:26"]
[BlackClock "0:01:29"]

1. e4 {[%clk 0:03:00]}  d5 {[%clk 0:03:00]} 2. exd5 {[%clk 0:03:00]}  Qxd5 {[%clk 0:03:00]} 3. Nc3 {[%clk 0:03:00]}  Qd6 {[%clk 0:03:01]} 4. Bc4 {[%clk 0:03:00]}  Nf6 {[%clk 0:03:01]} 5. d3 {[%clk 0:03:00]}  Bg4 {[%clk 0:03:01]} 6. f3 {[%clk 0:03:00]}  Bh5 {[%clk 0:03:01]} 7. g4 {[%clk 0:02:59]}  Bg6 {[%clk 0:03:01]} 8. Qe2 {[%clk 0:02:59]}  e6 {[%clk 0:03:00]} 9. f4 {[%clk 0:03:00]}  Be7 {[%clk 0:03:00]} 10. Bd2 {[%clk 0:02:56]}  c6 {[%clk 0:03:00]} 11. O-O-O {[%clk 0:02:55]}  Nbd7 {[%clk 0:02:59]} 12. h3 {[%clk 0:02:51]}  O-O-O {[%clk 0:02:58]} 13. Nf3 {[%clk 0:02:51]}  Qc7 {[%clk 0:02:57]} 14. Rhe1 {[%clk 0:02:48]}  Bd6 {[%clk 0:02:56]} 15. Ne5 {[%clk 0:02:47]}  Bxe5 {[%clk 0:02:53]} 16. fxe5 {[%clk 0:02:46]}  Nd5 {[%clk 0:02:53]} 17. Kb1 {[%clk 0:02:44]}  N7b6 {[%clk 0:02:50]} 18. Bb3 {[%clk 0:02:43]}  Nxc3+ {[%clk 0:02:48]} 19. Bxc3 {[%clk 0:02:43]}  Nd5 {[%clk 0:02:48]} 20. Bd2 {[%clk 0:02:44]}  h5 {[%clk 0:02:47]} 21. Bg5 {[%clk 0:02:36]}  Rd7 {[%clk 0:02:46]} 22. c4 {[%clk 0:02:28]}  Nb4 {[%clk 0:02:41]} 23. Bc2 {[%clk 0:02:21]}  Qa5 {[%clk 0:02:30]} 24. a3 {[%clk 0:02:17]}  Nxc2 {[%clk 0:02:27]} 25. Qxc2 {[%clk 0:02:16]}  hxg4 {[%clk 0:02:23]} 26. hxg4 {[%clk 0:02:15]}  Rh3 {[%clk 0:02:21]} 27. Re3 {[%clk 0:01:50]}  Rxe3 {[%clk 0:02:13]} 28. Bxe3 {[%clk 0:01:49]}  Qxe5 {[%clk 0:02:06]} 29. Bxa7 {[%clk 0:01:48]}  Qg3 {[%clk 0:02:01]} 30. Ka2 {[%clk 0:01:44]}  Qxg4 {[%clk 0:01:59]} 31. Qc3 {[%clk 0:01:39]}  Qxd1 {[%clk 0:01:48]} 32. Qxg7 {[%clk 0:01:31]}  Qxd3 {[%clk 0:01:45]} 33. Qf8+ {[%clk 0:01:29]}  Rd8 {[%clk 0:01:45]} 34. Qc5 {[%clk 0:01:28]}  Qb1+ {[%clk 0:01:37]} 35. Kb3 {[%clk 0:01:27]}  Bc2+ {[%clk 0:01:33]} 36. Kc3 {[%clk 0:01:26]}  Rd3+ {[%clk 0:01:31]} 37. Kb4 {[%clk 0:01:26]}  Qxb2+ {[%clk 0:01:29]} 0-1


[Site "https://www.chess.com"]

[Event "Titled Tuesday Blitz February 07 Late 2023"]
[White "Naroditsky, Daniel"]
[Black "Andreikin, Dmitry"]
[WhiteFideId "2026961"]
[BlackFideId "4158814"]
[WhiteElo "2618"]
[BlackElo "2729"]
[Result "1/2-1/2"]
[Round "07"]
[TimeControl "180+2"]
[Date "2023.02.07"]
[WhiteClock "0:01:00"]
[BlackClock "0:01:05"]

1. e4 {[%clk 0:03:00]}  e5 {[%clk 0:03:00]} 2. Nf3 {[%clk 0:03:00]}  Nc6 {[%clk 0:03:01]} 3. Bb5 {[%clk 0:03:00]}  g6 {[%clk 0:03:01]} 4. c3 {[%clk 0:02:54]}  d6 {[%clk 0:02:58]} 5. d4 {[%clk 0:02:53]}  Bd7 {[%clk 0:02:59]} 6. O-O {[%clk 0:02:53]}  Bg7 {[%clk 0:02:59]} 7. dxe5 {[%clk 0:02:51]}  Nxe5 {[%clk 0:02:57]} 8. Bxd7+ {[%clk 0:02:51]}  Nxd7 {[%clk 0:02:57]} 9. Bg5 {[%clk 0:02:48]}  Ngf6 {[%clk 0:02:55]} 10. Nbd2 {[%clk 0:02:48]}  O-O {[%clk 0:02:55]} 11. Re1 {[%clk 0:02:48]}  Re8 {[%clk 0:02:56]} 12. Qc2 {[%clk 0:02:48]}  h6 {[%clk 0:02:55]} 13. Bh4 {[%clk 0:02:48]}  Qc8 {[%clk 0:02:52]} 14. Rad1 {[%clk 0:02:48]}  Nh5 {[%clk 0:02:51]} 15. Bg3 {[%clk 0:02:38]}  a5 {[%clk 0:02:50]} 16. Nc4 {[%clk 0:02:34]}  Nxg3 {[%clk 0:02:49]} 17. hxg3 {[%clk 0:02:35]}  a4 {[%clk 0:02:50]} 18. Re2 {[%clk 0:02:22]}  b5 {[%clk 0:02:47]} 19. Ne3 {[%clk 0:02:13]}  Qb7 {[%clk 0:02:46]} 20. Nd5 {[%clk 0:02:11]}  Nc5 {[%clk 0:02:45]} 21. Rde1 {[%clk 0:02:10]}  c6 {[%clk 0:02:36]} 22. Nf4 {[%clk 0:02:07]}  Re7 {[%clk 0:02:34]} 23. e5 {[%clk 0:02:02]}  dxe5 {[%clk 0:02:30]} 24. Nxe5 {[%clk 0:02:03]}  Rae8 {[%clk 0:02:29]} 25. Ned3 {[%clk 0:01:56]}  Rxe2 {[%clk 0:02:08]} 26. Rxe2 {[%clk 0:01:57]}  Rxe2 {[%clk 0:02:08]} 27. Qxe2 {[%clk 0:01:58]}  Nxd3 {[%clk 0:02:06]} 28. Qxd3 {[%clk 0:01:55]}  Qe7 {[%clk 0:02:04]} 29. Qe2 {[%clk 0:01:40]}  Qxe2 {[%clk 0:01:50]} 30. Nxe2 {[%clk 0:01:41]}  f5 {[%clk 0:01:51]} 31. f3 {[%clk 0:01:32]}  Kf7 {[%clk 0:01:51]} 32. Kf2 {[%clk 0:01:32]}  g5 {[%clk 0:01:32]} 33. g4 {[%clk 0:01:32]}  Ke6 {[%clk 0:01:19]} 34. gxf5+ {[%clk 0:01:10]}  Kxf5 {[%clk 0:01:20]} 35. g4+ {[%clk 0:01:10]}  Ke6 {[%clk 0:01:20]} 36. Ke3 {[%clk 0:01:10]}  Kd5 {[%clk 0:01:05]} 37. b3 {[%clk 0:01:00]} 1/2-1/2


[Site "https://www.chess.com"]

[Event "Titled Tuesday Blitz February 07 Late 2023"]
[White "Hakobyan, Aram"]
[Black "Deac, Bogdan-Daniel"]
[WhiteFideId "13306677"]
[BlackFideId "1226380"]
[WhiteElo "2608"]
[BlackElo "2700"]
[Result "1-0"]
[Round "07"]
[TimeControl "180+2"]
[Date "2023.02.07"]
[WhiteClock "0:00:58"]
[BlackClock "0:00:01"]

1. e4 {[%clk 0:03:00]}  e5 {[%clk 0:02:59]} 2. Nf3 {[%clk 0:03:01]}  Nc6 {[%clk 0:02:59]} 3. Bc4 {[%clk 0:03:02]}  d6 {[%clk 0:02:59]} 4. Nc3 {[%clk 0:02:52]}  Be7 {[%clk 0:02:47]} 5. d4 {[%clk 0:02:48]}  Nf6 {[%clk 0:02:47]} 6. h3 {[%clk 0:02:38]}  O-O {[%clk 0:02:40]} 7. dxe5 {[%clk 0:02:38]}  Nxe5 {[%clk 0:02:38]} 8. Bb3 {[%clk 0:02:33]}  a6 {[%clk 0:02:30]} 9. O-O {[%clk 0:02:33]}  b5 {[%clk 0:02:23]} 10. a4 {[%clk 0:02:27]}  b4 {[%clk 0:02:05]} 11. Nxe5 {[%clk 0:02:27]}  dxe5 {[%clk 0:01:53]} 12. Nd5 {[%clk 0:02:27]}  Bb7 {[%clk 0:01:43]} 13. Nxe7+ {[%clk 0:02:12]}  Qxe7 {[%clk 0:01:42]} 14. f3 {[%clk 0:02:13]}  a5 {[%clk 0:01:21]} 15. Be3 {[%clk 0:02:11]}  Ba6 {[%clk 0:01:17]} 16. Rf2 {[%clk 0:02:10]}  Rad8 {[%clk 0:01:13]} 17. Rd2 {[%clk 0:02:10]}  Rxd2 {[%clk 0:00:33]} 18. Qxd2 {[%clk 0:02:11]}  Rd8 {[%clk 0:00:34]} 19. Qf2 {[%clk 0:02:09]}  Nh5 {[%clk 0:00:25]} 20. Re1 {[%clk 0:01:57]}  Bc8 {[%clk 0:00:22]} 21. Kh2 {[%clk 0:01:53]}  Be6 {[%clk 0:00:21]} 22. Re2 {[%clk 0:01:43]}  Bxb3 {[%clk 0:00:05]} 23. cxb3 {[%clk 0:01:44]}  Qe6 {[%clk 0:00:05]} 24. Rc2 {[%clk 0:01:39]}  Qxb3 {[%clk 0:00:04]} 25. Rxc7 {[%clk 0:01:37]}  Nf6 {[%clk 0:00:03]} 26. Bg5 {[%clk 0:01:34]}  Qe6 {[%clk 0:00:02]} 27. Rb7 {[%clk 0:01:32]}  h6 {[%clk 0:00:02]} 28. Rb6 {[%clk 0:01:33]}  Rd6 {[%clk 0:00:02]} 29. Rb8+ {[%clk 0:01:33]}  Kh7 {[%clk 0:00:01]} 30. Be3 {[%clk 0:01:25]}  Qb3 {[%clk 0:00:01]} 31. Rb5 {[%clk 0:01:17]}  Qxa4 {[%clk 0:00:01]} 32. Rxe5 {[%clk 0:01:17]}  Qa2 {[%clk 0:00:01]} 33. Rf5 {[%clk 0:01:08]}  Re6 {[%clk 0:00:01]} 34. Bd4 {[%clk 0:01:07]}  Qc4 {[%clk 0:00:01]} 35. Rxa5 {[%clk 0:01:05]}  b3 {[%clk 0:00:01]} 36. Rc5 {[%clk 0:00:58]} 1-0


[Site "https://www.chess.com"]